[Event "Live Chess"]
[Site "Chess.com"]
[Date "2024.06.01"]
[Round "-"]
[White "Bob2pen"]
[Black "defenderalist"]
[Result "0-1"]
[WhiteElo "1844"]
[BlackElo "1497"]
[TimeControl "300"]
[EndTime "9:22:57 PDT"]
[Termination "defenderalist won by resignation"]

1. e4 {[%clk 0:04:56.1]} 1... c5 {[%clk 0:04:58.2]} 2. Nf3 {[%clk 0:04:54.9]}
2... d6 {[%clk 0:04:58.1]} 3. Bb5+ {[%clk 0:04:53.1]} 3... Nc6 {[%clk
0:04:54.7]} 4. c3 {[%clk 0:04:51.7]} 4... a6 {[%clk 0:04:53.5]} 5. Ba4 {[%clk
0:04:50.5]} 5... b5 {[%clk 0:04:53]} 6. Bc2 {[%clk 0:04:49.2]} 6... Bb7 {[%clk
0:04:52.3]} 7. O-O {[%clk 0:04:48]} 7... e6 {[%clk 0:04:48.1]} 8. d4 {[%clk
0:04:46.4]} 8... cxd4 {[%clk 0:04:46.5]} 9. cxd4 {[%clk 0:04:45.3]} 9... Be7
{[%clk 0:04:41.2]} 10. Re1 {[%clk 0:04:44.1]} 10... Nf6 {[%clk 0:04:34.1]} 11.
a3 {[%clk 0:04:42.6]} 11... O-O {[%clk 0:04:29]} 12. Nc3 {[%clk 0:04:41.7]}
12... Na5 {[%clk 0:04:10.9]} 13. Qd3 {[%clk 0:04:37.1]} 13... g6 {[%clk
0:04:06.7]} 14. Bh6 {[%clk 0:04:33.9]} 14... Re8 {[%clk 0:04:03.8]} 15. d5
{[%clk 0:04:19.7]} 15... e5 {[%clk 0:03:58.1]} 16. Rab1 {[%clk 0:04:04.9]} 16...
Nc4 {[%clk 0:03:53.2]} 17. Bb3 {[%clk 0:04:01.6]} 17... Rc8 {[%clk 0:03:45.1]}
18. Nd2 {[%clk 0:03:59.4]} 18... Nxd2 {[%clk 0:03:40.6]} 19. Qxd2 {[%clk
0:03:56.7]} 19... Bf8 {[%clk 0:03:34.8]} 20. Bxf8 {[%clk 0:03:50.4]} 20... Rxf8
{[%clk 0:03:32.9]} 21. Rbc1 {[%clk 0:03:48.7]} 21... Ne8 {[%clk 0:03:18.1]} 22.
Qe3 {[%clk 0:03:41.2]} 22... f5 {[%clk 0:03:13.5]} 23. f3 {[%clk 0:03:38.3]}
23... fxe4 {[%clk 0:03:07.6]} 24. Nxe4 {[%clk 0:03:36.1]} 24... Qh4 {[%clk
0:03:00]} 25. Qf2 {[%clk 0:03:27.1]} 25... Qf4 {[%clk 0:02:51.1]} 26. Qg3 {[%clk
0:03:17.5]} 26... Rxc1 {[%clk 0:02:42.3]} 27. Qxf4 {[%clk 0:03:09.2]} 27...
Rxe1+ {[%clk 0:02:40.4]} 28. Kf2 {[%clk 0:03:07.4]} 28... Rxf4 {[%clk
0:02:25.2]} 0-1

[Event "Live Chess"]
[Site "Chess.com"]
[Date "2024.06.01"]
[Round "-"]
[White "Grieve72"]
[Black "NAZRIZ1977"]
[Result "1-0"]
[WhiteElo "2651"]
[BlackElo "2127"]
[TimeControl "300"]
[EndTime "9:23:21 PDT"]
[Termination "Grieve72 won by resignation"]

1. e4 {[%clk 0:04:58.7]} 1... c5 {[%clk 0:04:59]} 2. Nf3 {[%clk 0:04:57.7]} 2...
d6 {[%clk 0:04:58.3]} 3. Nc3 {[%clk 0:04:53.8]} 3... Nf6 {[%clk 0:04:57]} 4. e5
{[%clk 0:04:53.1]} 4... dxe5 {[%clk 0:04:55.6]} 5. Nxe5 {[%clk 0:04:53]} 5... a6
{[%clk 0:04:55.2]} 6. Be2 {[%clk 0:04:50.2]} 6... Nbd7 {[%clk 0:04:50.8]} 7.
Nxd7 {[%clk 0:04:45.3]} 7... Bxd7 {[%clk 0:04:45.8]} 8. O-O {[%clk 0:04:45.2]}
8... Qc7 {[%clk 0:04:43]} 9. d3 {[%clk 0:04:43.1]} 9... g6 {[%clk 0:04:40.3]}
10. Bg5 {[%clk 0:04:37.8]} 10... Bc6 {[%clk 0:04:36.7]} 11. Bf3 {[%clk
0:04:34.1]} 11... Bg7 {[%clk 0:04:35.4]} 12. Re1 {[%clk 0:04:31.5]} 12... e6
{[%clk 0:04:28.2]} 13. a4 {[%clk 0:04:24.7]} 13... b6 {[%clk 0:04:18.3]} 14. Rb1
{[%clk 0:04:07.9]} 14... O-O {[%clk 0:04:15.1]} 15. b4 {[%clk 0:04:03.1]} 15...
cxb4 {[%clk 0:04:05.8]} 16. Ne4 {[%clk 0:03:55.1]} 16... Nxe4 {[%clk 0:04:01.7]}
17. Bxe4 {[%clk 0:03:53.5]} 17... a5 {[%clk 0:04:00.3]} 18. h4 {[%clk
0:03:40.4]} 18... Rac8 {[%clk 0:03:52.1]} 19. Re2 {[%clk 0:03:31.7]} 19... Bxe4
{[%clk 0:03:36.3]} 20. dxe4 {[%clk 0:03:31.6]} 20... f6 {[%clk 0:03:35.6]} 21.
Be3 {[%clk 0:03:26]} 21... Rfd8 {[%clk 0:03:34.6]} 22. Qc1 {[%clk 0:03:20.1]}
22... Qc4 {[%clk 0:03:25.8]} 23. Qe1 {[%clk 0:03:03.5]} 23... b5 {[%clk
0:03:07.6]} 24. axb5 {[%clk 0:02:57]} 24... Qxb5 {[%clk 0:03:06.2]} 25. f3
{[%clk 0:02:49]} 25... a4 {[%clk 0:03:04.1]} 26. Rxb4 {[%clk 0:02:45]} 26... Qa6
{[%clk 0:02:52.4]} 27. c3 {[%clk 0:02:40.1]} 27... f5 {[%clk 0:02:48.4]} 28. Bd4
{[%clk 0:02:34]} 28... Bxd4+ {[%clk 0:02:38.5]} 29. cxd4 {[%clk 0:02:33.9]}
29... a3 {[%clk 0:02:37.4]} 30. Ra2 {[%clk 0:02:27.6]} 30... Rc3 {[%clk
0:02:03.7]} 31. Qxc3 {[%clk 0:02:24.5]} 1-0

[Event "Live Chess"]
[Site "Chess.com"]
[Date "2024.06.01"]
[Round "-"]
[White "Mangoalo"]
[Black "Berdgross"]
[Result "1/2-1/2"]
[WhiteElo "989"]
[BlackElo "579"]
[TimeControl "300"]
[EndTime "9:23:28 PDT"]
[Termination "Game drawn - insufficient material"]

1. e4 {[%clk 0:04:57.4]} 1... d5 {[%clk 0:04:56.7]} 2. exd5 {[%clk 0:04:56]}
2... Qxd5 {[%clk 0:04:55.3]} 3. Nc3 {[%clk 0:04:55.2]} 3... Qd8 {[%clk
0:04:53.9]} 4. Bc4 {[%clk 0:04:51.2]} 4... Nc6 {[%clk 0:04:52.8]} 5. Nf3 {[%clk
0:04:50]} 5... Nf6 {[%clk 0:04:52]} 6. O-O {[%clk 0:04:48]} 6... h6 {[%clk
0:04:51.4]} 7. h3 {[%clk 0:04:45.5]} 7... a6 {[%clk 0:04:50.5]} 8. a3 {[%clk
0:04:44.1]} 8... b5 {[%clk 0:04:48.4]} 9. Ba2 {[%clk 0:04:42.7]} 9... Bb7 {[%clk
0:04:44.1]} 10. d4 {[%clk 0:04:42.1]} 10... e6 {[%clk 0:04:41.7]} 11. Ne5 {[%clk
0:04:38.9]} 11... Nxe5 {[%clk 0:04:39.7]} 12. dxe5 {[%clk 0:04:38.8]} 12... Qxd1
{[%clk 0:04:38.3]} 13. Rxd1 {[%clk 0:04:36.3]} 13... Ne4 {[%clk 0:04:36.1]} 14.
Nxe4 {[%clk 0:04:34.7]} 14... Bxe4 {[%clk 0:04:34.3]} 15. c3 {[%clk 0:04:29.8]}
15... Bc5 {[%clk 0:04:17.6]} 16. Be3 {[%clk 0:04:23]} 16... Bxe3 {[%clk
0:04:16]} 17. fxe3 {[%clk 0:04:22.9]} 17... O-O {[%clk 0:04:14.7]} 18. Bb1
{[%clk 0:04:19.5]} 18... Bxb1 {[%clk 0:04:12.3]} 19. Raxb1 {[%clk 0:04:19.4]}
19... Rfd8 {[%clk 0:04:05.6]} 20. Rd4 {[%clk 0:04:18.9]} 20... Rxd4 {[%clk
0:04:03.6]} 21. exd4 {[%clk 0:04:18.1]} 21... Kh7 {[%clk 0:03:57.4]} 22. Ra1
{[%clk 0:04:15.2]} 22... a5 {[%clk 0:03:48.9]} 23. g4 {[%clk 0:04:07.6]} 23...
g5 {[%clk 0:03:44.6]} 24. Kf2 {[%clk 0:04:06.5]} 24... Kg6 {[%clk 0:03:42.4]}
25. Ke3 {[%clk 0:04:01]} 25... h5 {[%clk 0:03:38.5]} 26. gxh5+ {[%clk
0:03:59.6]} 26... Kxh5 {[%clk 0:03:37.5]} 27. Kf3 {[%clk 0:03:58.9]} 27... Rc8
{[%clk 0:03:21.7]} 28. b4 {[%clk 0:03:54]} 28... axb4 {[%clk 0:03:19.6]} 29.
axb4 {[%clk 0:03:53.9]} 29... c6 {[%clk 0:03:11.9]} 30. Ra7 {[%clk 0:03:40.4]}
30... Kg6 {[%clk 0:02:58.5]} 31. Kg4 {[%clk 0:03:35.9]} 31... f6 {[%clk
0:02:54.4]} 32. exf6 {[%clk 0:03:32.6]} 32... Kxf6 {[%clk 0:02:53.2]} 33. Rg7
{[%clk 0:03:24.2]} 33... Kxg7 {[%clk 0:02:48.7]} 34. h4 {[%clk 0:03:23.4]} 34...
gxh4 {[%clk 0:02:46.5]} 35. Kxh4 {[%clk 0:03:23.3]} 35... Rh8+ {[%clk
0:02:42.6]} 36. Kg5 {[%clk 0:03:22.3]} 36... Rh6 {[%clk 0:02:34]} 37. Kf4 {[%clk
0:03:19.5]} 37... Kf6 {[%clk 0:02:31.5]} 38. Ke4 {[%clk 0:03:15.5]} 38... Rh5
{[%clk 0:02:27.9]} 39. Kd3 {[%clk 0:03:13.5]} 39... e5 {[%clk 0:02:26]} 40.
dxe5+ {[%clk 0:03:12]} 40... Kxe5 {[%clk 0:02:25]} 41. c4 {[%clk 0:03:10.8]}
41... bxc4+ {[%clk 0:02:23.1]} 42. Kxc4 {[%clk 0:03:10.7]} 42... Ke4 {[%clk
0:02:20.5]} 43. Kb3 {[%clk 0:03:09.5]} 43... Kd3 {[%clk 0:02:18.3]} 44. Ka4
{[%clk 0:03:08.7]} 44... Rb5 {[%clk 0:02:15.5]} 45. Kb3 {[%clk 0:03:06.5]} 45...
Kd4 {[%clk 0:02:13.7]} 46. Ka4 {[%clk 0:03:05.5]} 46... Rd5 {[%clk 0:02:07.3]}
47. Kb3 {[%clk 0:03:01.8]} 47... Kd3 {[%clk 0:02:03.3]} 48. Ka4 {[%clk
0:02:58.8]} 48... Rd4 {[%clk 0:02:01.6]} 49. Ka5 {[%clk 0:02:57]} 49... Kc3
{[%clk 0:01:59.7]} 50. b5 {[%clk 0:02:56.1]} 50... cxb5 {[%clk 0:01:58]} 51.
Kxb5 {[%clk 0:02:55.8]} 51... Rd5+ {[%clk 0:01:54.8]} 52. Kc6 {[%clk 0:02:54.2]}
52... Rd4 {[%clk 0:01:53.1]} 53. Kc5 {[%clk 0:02:53.4]} 53... Kb3 {[%clk
0:01:51.4]} 54. Kxd4 {[%clk 0:02:52]} 1/2-1/2

[Event "Live Chess"]
[Site "Chess.com"]
[Date "2024.06.01"]
[Round "-"]
[White "nigelst"]
[Black "gunslinger222"]
[Result "0-1"]
[WhiteElo "1762"]
[BlackElo "2272"]
[TimeControl "300"]
[EndTime "9:23:33 PDT"]
[Termination "gunslinger222 won by resignation"]

1. e4 {[%clk 0:04:56.9]} 1... e6 {[%clk 0:04:59.1]} 2. d4 {[%clk 0:04:53.4]}
2... d5 {[%clk 0:04:58.7]} 3. exd5 {[%clk 0:04:50.8]} 3... exd5 {[%clk
0:04:58.6]} 4. Nf3 {[%clk 0:04:48.6]} 4... Nc6 {[%clk 0:04:58.1]} 5. Bb5 {[%clk
0:04:45.2]} 5... Bd6 {[%clk 0:04:57.2]} 6. O-O {[%clk 0:04:43]} 6... Ne7 {[%clk
0:04:54.8]} 7. c4 {[%clk 0:04:39.5]} 7... dxc4 {[%clk 0:04:45.9]} 8. Bxc4 {[%clk
0:04:36.9]} 8... O-O {[%clk 0:04:24.8]} 9. Bg5 {[%clk 0:04:14.7]} 9... Bg4
{[%clk 0:04:15.2]} 10. h3 {[%clk 0:04:06.6]} 10... Bxf3 {[%clk 0:04:09.1]} 11.
Qxf3 {[%clk 0:04:03.9]} 11... Nxd4 {[%clk 0:04:01.2]} 12. Qxb7 {[%clk
0:03:59.3]} 12... Rb8 {[%clk 0:03:54.8]} 13. Bxe7 {[%clk 0:03:49.7]} 13... Qxe7
{[%clk 0:03:49.3]} 14. Qd5 {[%clk 0:03:47.8]} 14... Nc2 {[%clk 0:03:41.8]} 15.
Nc3 {[%clk 0:03:38.5]} 15... Nxa1 {[%clk 0:03:39.5]} 16. Rxa1 {[%clk 0:03:36.8]}
16... Rxb2 {[%clk 0:03:36.9]} 17. Ne4 {[%clk 0:03:23.8]} 17... Qe5 {[%clk
0:03:30.4]} 18. Qxe5 {[%clk 0:03:20.4]} 18... Bxe5 {[%clk 0:03:29.3]} 19. Rd1
{[%clk 0:03:18]} 19... Bd6 {[%clk 0:03:17.5]} 20. Nxd6 {[%clk 0:03:10.8]} 20...
cxd6 {[%clk 0:03:16.4]} 21. Rxd6 {[%clk 0:03:09.3]} 21... Rb7 {[%clk 0:03:14.9]}
22. g3 {[%clk 0:03:01.9]} 22... Rc7 {[%clk 0:03:13.8]} 23. Bb3 {[%clk
0:02:59.6]} 23... g6 {[%clk 0:03:12.8]} 24. Kg2 {[%clk 0:02:57.5]} 24... Kg7
{[%clk 0:03:12.1]} 25. h4 {[%clk 0:02:56.2]} 25... h5 {[%clk 0:03:08.5]} 26. Rd4
{[%clk 0:02:46.3]} 26... Re8 {[%clk 0:03:05.5]} 27. g4 {[%clk 0:02:34.4]} 27...
hxg4 {[%clk 0:03:00.6]} 28. Rxg4 {[%clk 0:02:31.8]} 28... Re5 {[%clk 0:02:59.7]}
29. Rf4 {[%clk 0:02:25.4]} 29... Rf5 {[%clk 0:02:54.6]} 30. Rxf5 {[%clk
0:02:17.4]} 30... gxf5 {[%clk 0:02:54.5]} 31. Kg3 {[%clk 0:02:15.2]} 31... Rd7
{[%clk 0:02:45.6]} 32. Kf4 {[%clk 0:02:10]} 32... Kf6 {[%clk 0:02:44.9]} 33. Kg3
{[%clk 0:01:49.1]} 33... Ke5 {[%clk 0:02:39.7]} 34. h5 {[%clk 0:01:25.6]} 34...
Kf6 {[%clk 0:02:21]} 35. f4 {[%clk 0:01:15.6]} 35... Rd3+ {[%clk 0:02:18.4]} 36.
Kh4 {[%clk 0:01:07.5]} 36... Rf3 {[%clk 0:02:14.9]} 37. h6 {[%clk 0:01:03.8]}
37... Rxf4+ {[%clk 0:02:14]} 38. Kh5 {[%clk 0:01:02.8]} 38... Rf1 {[%clk
0:02:11]} 39. Bd5 {[%clk 0:00:56.9]} 39... Rf2 {[%clk 0:02:10.2]} 40. Kh4 {[%clk
0:00:51.3]} 40... Rh2+ {[%clk 0:02:08.5]} 0-1

[Event "Live Chess"]
[Site "Chess.com"]
[Date "2024.06.01"]
[Round "-"]
[White "SvitlanaJ"]
[Black "DoctorMantisTobogganMD"]
[Result "0-1"]
[WhiteElo "393"]
[BlackElo "2208"]
[TimeControl "300"]
[EndTime "9:23:39 PDT"]
[Termination "DoctorMantisTobogganMD won on time"]

1. e4 {[%clk 0:04:57.2]} 1... g6 {[%clk 0:04:59.4]} 2. d4 {[%clk 0:04:52.5]}
2... c6 {[%clk 0:04:59.3]} 3. Nf3 {[%clk 0:04:47.9]} 3... d5 {[%clk 0:04:59.2]}
4. e5 {[%clk 0:04:44.4]} 4... Bg4 {[%clk 0:04:57.8]} 5. Be2 {[%clk 0:04:42.6]}
5... e6 {[%clk 0:04:54.3]} 6. Nc3 {[%clk 0:04:40.3]} 6... Nd7 {[%clk 0:04:51.5]}
7. O-O {[%clk 0:04:37.7]} 7... Bxf3 {[%clk 0:04:50.6]} 8. Bxf3 {[%clk
0:04:36.2]} 8... a6 {[%clk 0:04:48.8]} 9. h3 {[%clk 0:04:34]} 9... c5 {[%clk
0:04:47.3]} 10. a3 {[%clk 0:04:25.6]} 10... cxd4 {[%clk 0:04:33.7]} 11. Qxd4
{[%clk 0:04:22.3]} 11... Bc5 {[%clk 0:04:33.3]} 12. Qf4 {[%clk 0:04:13.2]} 12...
Ne7 {[%clk 0:04:29.2]} 13. Qh6 {[%clk 0:04:05.2]} 13... Nf5 {[%clk 0:04:27.5]}
14. Qd2 {[%clk 0:03:53.6]} 14... Nxe5 {[%clk 0:04:25.4]} 15. Na4 {[%clk
0:03:42.2]} 15... Ba7 {[%clk 0:04:20.9]} 16. Bg4 {[%clk 0:03:09.9]} 16... Rc8
{[%clk 0:04:11.4]} 17. Bxf5 {[%clk 0:03:05.2]} 17... gxf5 {[%clk 0:04:11.3]} 18.
Qh6 {[%clk 0:02:39]} 18... Rc4 {[%clk 0:03:50.2]} 19. Bg5 {[%clk 0:02:35.3]}
19... Qd7 {[%clk 0:03:33.7]} 20. Bf6 {[%clk 0:02:30.3]} 20... Rxa4 {[%clk
0:02:47.9]} 21. Bxh8 {[%clk 0:02:25.9]} 21... Ng6 {[%clk 0:02:44.1]} 22. Qxh7
{[%clk 0:02:13.1]} 22... Rh4 {[%clk 0:02:27.5]} 23. Qg8+ {[%clk 0:02:09.8]}
23... Ke7 {[%clk 0:02:26.8]} 24. Qa8 {[%clk 0:01:20.9]} 24... Bxf2+ {[%clk
0:02:21.8]} 25. Rxf2 {[%clk 0:01:17]} 25... Rxh8 {[%clk 0:02:21.7]} 26. Qa7
{[%clk 0:01:09.8]} 26... Rc8 {[%clk 0:02:18.9]} 27. Qe3 {[%clk 0:00:57.7]} 27...
Kf8 {[%clk 0:02:11.3]} 28. Raf1 {[%clk 0:00:42]} 28... Qc6 {[%clk 0:02:04.7]}
29. Qh6+ {[%clk 0:00:37.8]} 29... Ke7 {[%clk 0:02:02.8]} 30. Qg5+ {[%clk
0:00:35.1]} 30... Kd7 {[%clk 0:02:02]} 31. Qf6 {[%clk 0:00:31.1]} 31... Ke8
{[%clk 0:01:59]} 32. g4 {[%clk 0:00:27.8]} 32... f4 {[%clk 0:01:56.4]} 33. h4
{[%clk 0:00:20.4]} 33... e5 {[%clk 0:01:55.7]} 34. h5 {[%clk 0:00:18.5]} 34...
Qxf6 {[%clk 0:01:54.7]} 35. hxg6 {[%clk 0:00:15.9]} 35... Qxg6 {[%clk
0:01:54.6]} 36. Rg2 {[%clk 0:00:09.3]} 36... Rxc2 {[%clk 0:01:52.9]} 37. Rxc2
{[%clk 0:00:05.7]} 37... Qxc2 {[%clk 0:01:52.8]} 38. Rf2 {[%clk 0:00:01.9]}
38... Qc5 {[%clk 0:01:51]} 0-1

[Event "Live Chess"]
[Site "Chess.com"]
[Date "2024.06.01"]
[Round "-"]
[White "Nathaniel250"]
[Black "Duke_of_Bebington"]
[Result "1-0"]
[WhiteElo "1425"]
[BlackElo "1610"]
[TimeControl "300"]
[EndTime "9:23:49 PDT"]
[Termination "Nathaniel250 won by resignation"]

1. c4 {[%clk 0:04:56.3]} 1... c6 {[%clk 0:04:58.6]} 2. e4 {[%clk 0:04:54.7]}
2... d5 {[%clk 0:04:56.6]} 3. cxd5 {[%clk 0:04:53.4]} 3... cxd5 {[%clk 0:04:56]}
4. exd5 {[%clk 0:04:51.7]} 4... Qxd5 {[%clk 0:04:54.7]} 5. Nc3 {[%clk 0:04:51]}
5... Qa5 {[%clk 0:04:52.9]} 6. d4 {[%clk 0:04:45.9]} 6... Nf6 {[%clk 0:04:49.7]}
7. Nf3 {[%clk 0:04:41.5]} 7... e6 {[%clk 0:04:46]} 8. Bd2 {[%clk 0:04:40.7]}
8... Qb6 {[%clk 0:04:19.4]} 9. Bb5+ {[%clk 0:04:33.2]} 9... Bd7 {[%clk
0:04:03.5]} 10. Qb3 {[%clk 0:04:30.8]} 10... Bxb5 {[%clk 0:04:00.8]} 11. Qxb5+
{[%clk 0:04:29.4]} 11... Qxb5 {[%clk 0:03:59.5]} 12. Nxb5 {[%clk 0:04:29.3]}
12... Na6 {[%clk 0:03:56.8]} 13. Rc1 {[%clk 0:04:23]} 13... Kd7 {[%clk
0:03:41.7]} 14. O-O {[%clk 0:04:20.5]} 14... Bd6 {[%clk 0:03:32.2]} 15. Ne5+
{[%clk 0:04:12.2]} 15... Bxe5 {[%clk 0:03:30.3]} 16. dxe5 {[%clk 0:04:12.1]}
16... Ne4 {[%clk 0:03:24.3]} 17. Be3 {[%clk 0:04:01.8]} 17... Rac8 {[%clk
0:03:05.9]} 18. Nxa7 {[%clk 0:03:55.5]} 18... Rxc1 {[%clk 0:03:03.7]} 19. Rxc1
{[%clk 0:03:55.4]} 19... Nb4 {[%clk 0:02:55.7]} 20. a3 {[%clk 0:03:40.1]} 20...
Nd3 {[%clk 0:02:54.3]} 21. Rd1 {[%clk 0:03:35.4]} 1-0

[Event "Live Chess"]
[Site "Chess.com"]
[Date "2024.06.01"]
[Round "-"]
[White "Delacorta"]
[Black "ggosyaa"]
[Result "1-0"]
[WhiteElo "1400"]
[BlackElo "580"]
[TimeControl "300"]
[EndTime "9:23:51 PDT"]
[Termination "Delacorta won by resignation"]

1. d4 {[%clk 0:04:57.9]} 1... Nf6 {[%clk 0:04:57]} 2. Nf3 {[%clk 0:04:57]} 2...
d5 {[%clk 0:04:54.3]} 3. e3 {[%clk 0:04:56.1]} 3... g6 {[%clk 0:04:52.9]} 4. Bd3
{[%clk 0:04:51.3]} 4... Bg7 {[%clk 0:04:51.3]} 5. c4 {[%clk 0:04:49.5]} 5... O-O
{[%clk 0:04:48.4]} 6. Nc3 {[%clk 0:04:47.6]} 6... c6 {[%clk 0:04:42.9]} 7. h4
{[%clk 0:04:45.6]} 7... Ne4 {[%clk 0:04:40.7]} 8. Nxe4 {[%clk 0:04:42.6]} 8...
dxe4 {[%clk 0:04:39.7]} 9. Bxe4 {[%clk 0:04:41.5]} 9... Qa5+ {[%clk 0:04:36.7]}
10. Bd2 {[%clk 0:04:35.7]} 10... Qa6 {[%clk 0:04:28.2]} 11. b3 {[%clk
0:04:27.4]} 11... b5 {[%clk 0:04:23.4]} 12. Bd3 {[%clk 0:04:15.2]} 12... Be6
{[%clk 0:04:20.2]} 13. cxb5 {[%clk 0:04:11.2]} 13... cxb5 {[%clk 0:04:18.8]} 14.
Qe2 {[%clk 0:04:08.1]} 14... Bd7 {[%clk 0:04:10.4]} 15. O-O {[%clk 0:04:06]}
15... Bc6 {[%clk 0:04:02.5]} 16. Bb4 {[%clk 0:03:57.3]} 16... Nd7 {[%clk
0:03:59.1]} 17. Rac1 {[%clk 0:03:49.3]} 17... Rac8 {[%clk 0:03:57]} 18. Bxe7
{[%clk 0:03:32.6]} 18... Rfe8 {[%clk 0:03:53.7]} 19. Bd6 {[%clk 0:03:28.1]}
19... Qb7 {[%clk 0:03:47.5]} 20. b4 {[%clk 0:03:15.3]} 20... Bd5 {[%clk
0:03:40.2]} 21. a3 {[%clk 0:03:09.4]} 21... Rxc1 {[%clk 0:03:37.4]} 22. Rxc1
{[%clk 0:03:05.1]} 22... Nf6 {[%clk 0:03:33.1]} 23. Bxb5 {[%clk 0:02:48.5]}
23... Rd8 {[%clk 0:03:25.5]} 24. Be5 {[%clk 0:02:43]} 24... Ne4 {[%clk
0:03:22.3]} 25. Bd3 {[%clk 0:02:37.7]} 25... f6 {[%clk 0:03:16.4]} 26. Bh2
{[%clk 0:02:31.2]} 26... Nc3 {[%clk 0:03:05]} 27. Rxc3 {[%clk 0:02:28.6]} 27...
Re8 {[%clk 0:03:02]} 28. Rc7 {[%clk 0:02:27.3]} 28... Qb8 {[%clk 0:02:55.7]} 29.
Rxg7+ {[%clk 0:02:25.2]} 29... Kxg7 {[%clk 0:02:54.6]} 30. Bxb8 {[%clk
0:02:24.1]} 30... Rxb8 {[%clk 0:02:53.3]} 31. Bc4 {[%clk 0:02:22.4]} 31... Bxf3
{[%clk 0:02:50.9]} 32. Qxf3 {[%clk 0:02:20.4]} 32... Re8 {[%clk 0:02:49.7]} 33.
Qc6 {[%clk 0:02:18.8]} 33... Re7 {[%clk 0:02:46.7]} 1-0

[Event "Live Chess"]
[Site "Chess.com"]
[Date "2024.06.01"]
[Round "-"]
[White "13Alexey"]
[Black "Dhaydon19"]
[Result "0-1"]
[WhiteElo "739"]
[BlackElo "2709"]
[TimeControl "300"]
[EndTime "9:23:51 PDT"]
[Termination "Dhaydon19 won by resignation"]

1. d4 {[%clk 0:04:59.4]} 1... c6 {[%clk 0:04:59]} 2. Bf4 {[%clk 0:04:58.2]} 2...
d5 {[%clk 0:04:58.7]} 3. e3 {[%clk 0:04:56.9]} 3... Nf6 {[%clk 0:04:58.2]} 4.
Bd3 {[%clk 0:04:55.4]} 4... g6 {[%clk 0:04:57.9]} 5. Nc3 {[%clk 0:04:50.4]} 5...
Bg7 {[%clk 0:04:56.9]} 6. Qd2 {[%clk 0:04:46.5]} 6... O-O {[%clk 0:04:56.2]} 7.
f3 {[%clk 0:04:45.5]} 7... Nbd7 {[%clk 0:04:54.9]} 8. g4 {[%clk 0:04:44.1]} 8...
Re8 {[%clk 0:04:52.9]} 9. O-O-O {[%clk 0:04:41.7]} 9... e5 {[%clk 0:04:51.9]}
10. dxe5 {[%clk 0:04:40.1]} 10... Nxe5 {[%clk 0:04:51.6]} 11. h4 {[%clk
0:04:33.9]} 11... h5 {[%clk 0:04:49]} 12. gxh5 {[%clk 0:04:32.5]} 12... Nxh5
{[%clk 0:04:48.1]} 13. Bxe5 {[%clk 0:04:26]} 13... Rxe5 {[%clk 0:04:45]} 14. f4
{[%clk 0:04:23.3]} 14... Re8 {[%clk 0:04:44]} 15. Nf3 {[%clk 0:04:19.4]} 15...
Bg4 {[%clk 0:04:42]} 16. Rdf1 {[%clk 0:04:09.2]} 16... Ng3 {[%clk 0:04:40.3]}
17. Rhg1 {[%clk 0:04:03.7]} 17... Nxf1 {[%clk 0:04:38.9]} 18. Rxf1 {[%clk
0:03:58.3]} 18... Bxf3 {[%clk 0:04:37.9]} 19. Rxf3 {[%clk 0:03:56.4]} 19... Qxh4
{[%clk 0:04:37.6]} 0-1